Cogmind - Beta 15 @@@ ROGUE MODE // 2025.09.04 @ 20:59:20 Player: Patches Result: Destroyed by 0W-TCD(R) with Subdweller Beam Cannon Performance ------------- Evolutions (0) 0 Regions Visited (3) 600 Robots Destroyed (27) 135 Value Destroyed (567) 567 Prototype IDs (0) 0 Alien Tech Used (0) 0 Bonus (0) 0 TOTAL SCORE: 1302 Bonus ------- None Cogmind --------- Core Integrity 0/250 Matter 228/300 Energy 85/100 System Corruption 2% Temperature Cool (9) Movement Core (250) Ox4 Location -10/Subcaves Parts ------- > --- POWER (1) -------- (None) > --- PROPULSION (2) --- (None) > --- UTILITY (2) ------ Medium Storage Unit > --- WEAPON (2) ------- Medium Laser Light Assault Rifle > --- INVENTORY (10) --- Ion Engine Disposable Heat Sink High-capacity Storage Unit Terrain Scan Processor Transport Network Coupler Hacking Suite Recalibrator Peak State ------------ > --- POWER ------------ Ion Engine > --- PROPULSION ------- Light Treads Light Treads > --- UTILITY ---------- Medium Storage Unit Machine Analyzer > --- WEAPON ----------- Medium Laser Particle Gun > --- INVENTORY -------- Ion Engine Light Treads High-capacity Storage Unit Terrain Scan Processor Seismic Detector Transport Network Coupler Hacking Suite Recalibrator Grenade Launcher [Rating: 11] Favorites ----------- Power Ion Engine Engine Ion Engine Propulsion Light Treads Treads Light Treads Utility Medium Storage Unit Device Seismic Detector Storage Medium Storage Unit Processor Machine Analyzer Weapon Assault Rifle Energy Gun EM Pulse Gun Ballistic Gun Assault Rifle Launcher Grenade Launcher Build | -11 -10 -10 -10 ------- Run | Yrd Mat Min Sub Slots Evolved . | . . . . Power . | . . . . Propulsion . | . . . . Utility . | . . . . Weapon . | . . . . Parts Attached 16 | 7 4 3 2 Power 2 | 1 . . 1 Engine 2 | 1 . . 1 Core . | . . . . Reactor . | . . . . Propulsion 3 | 2 1 . . Treads 3 | 2 1 . . Leg . | . . . . Wheel . | . . . . Hover . | . . . . Flight . | . . . . Utility 5 | 2 3 . . Device 2 | 2 . . . Storage 2 | . 2 . . Processor 1 | . 1 . . Hackware . | . . . . Protection . | . . . . Artifact . | . . . . Weapon 6 | 2 . 3 1 Energy Gun 3 | 1 . 2 . Energy Cannon . | . . . . Ballistic Gun 2 | 1 . 1 . Ballistic Cannon . | . . . . Launcher 1 | . . . 1 Special Weapon . | . . . . Impact Weapon . | . . . . Slashing Weapon . | . . . . Piercing Weapon . | . . . . Special Melee Weapon . | . . . . Unidentified Prototypes . | . . . . Parts Lost 12 | . 1 3 8 Power 2 | . . . 2 Propulsion 3 | . . 1 2 Utility 3 | . 1 . 2 Weapon 4 | . . 2 2 Highest Loss Streak 5 | . 1 2 5 To Critical Strikes . | . . . . Average Backups 8 | 1 8 9 8 Power . | . 1 1 . Propulsion . | . . . . Utility 5 | . 5 6 6 Weapon 1 | . 1 1 1 Tool/Special . | . . . . Unused Backups 8 | . 1 1 6 Power 1 | . . . 1 Propulsion . | . . . . Utility 6 | . 1 . 5 Weapon 1 | . . 1 . Tool/Special . | . . . . Average Slot Usage (%) 91 | . 99 98 82 Engine 13 | . 14 14 12 Treads 22 | . 28 27 16 Device 8 | . 12 . 7 Storage 12 | . 11 14 14 Processor 4 | . 4 14 3 Energy Gun 14 | . 13 22 14 Ballistic Gun 9 | . 14 4 4 Launcher 3 | . . . 9 Peak Build Rating 11 | 7 10 11 11 Average Rating 8 | 4 8 10 8 On Entrance 7 | . 7 10 11 Naked Turns . | . . . . Heaviest Build 22 | 11 20 20 22 Greatest Support 40 | 40 40 40 40 Greatest Overweight (x) 1 | 1 . . 1 Average Overweight (x) . | . . . . Largest Inventory Capacity 20 | 5 20 10 10 Average Capacity 9 | 5 8 10 10 Most Carried 10 | 5 10 10 10 Average Carried 8 | 1 8 9 8 Final Capacity 10 | 5 10 10 10 Final Carried 10 | 1 10 9 7 Class Distribution -------------------- 84% | Mutant 15% | Scavenger-Mutant Dominant Class ---------------- Mutant | -10/Materials Scavenger-Mutant | -10/Mines Mutant | -10/Subcaves Resources | -11 -10 -10 -10 ----------- Run | Yrd Mat Min Sub Matter Collected 633 | 288 213 50 82 Remotely 151 | 32 119 . . Salvage Created 924 | 108 621 137 58 Parts 51 | 6 36 7 2 Haulers Intercepted 2 | . 2 . . Recyclers Shooed 3 | . 3 . . Parts Field Recycled . | . . . . Retrieved Matter . | . . . . Parts Self-Destructed 8 | . . . 8 Prevented . | . . . . Kills | -11 -10 -10 -10 ------- Run | Yrd Mat Min Sub Combat Hostiles Destroyed 17 | . 9 5 3 Guns 13 | . 7 5 1 AOE 4 | . 2 . 2 Classes Destroyed 10 | 2 7 . 1 Builder 1 | . 1 . . Tunneler 1 | 1 . . . Hauler 2 | . 2 . . Recycler 2 | 1 1 . . Mechanic 1 | . 1 . . Operator 1 | . 1 . . Watcher 2 | . 2 . . Swarmer 6 | . 3 3 . Grunt 8 | . 6 2 . Subdweller 3 | . . . 3 Best Kill Streak 4 | 1 4 3 2 Combat Bots Only 4 | . 4 3 2 Max Kills in Single Turn 1 | 1 1 1 1 Gunslinging . | . . . . Exploded 1 | . 1 . 1 Melee . | . . . . Uniques/NPCs Destroyed . | . . . . Combat | -11 -10 -10 -10 -------- Run | Yrd Mat Min Sub Hostile Shots Fired 104 | . 35 33 36 Missed 34 | . 13 8 13 Hits 70 | . 22 25 23 Projectile 70 | . 22 25 23 AOE 3 | . . . 3 Critical Strikes 1 | . . . 1 Damage Taken 1307 | . 293 286 728 Core 272 | . 29 44 199 Absorbed by Shields . | . . . . Core Remaining (%) 100 | 100 . . . Volleys Fired 93 | 6 54 13 20 Largest 2 | 2 2 2 2 Hottest 115 | 60 60 115 95 Shots Fired 184 | 12 109 24 39 Gun 173 | 12 109 24 28 Cannon . | . . . . Launcher 11 | . . . 11 Special . | . . . . Kinetic 74 | 6 55 5 8 Thermal 38 | . . 18 20 Explosive 11 | . . . 11 Electromagnetic 61 | 6 54 1 . Robot Hit Streak 12 | 4 11 11 12 Robot Miss Streak 6 | 2 6 1 1 Penetration Max . | . . . . Secondary Targets 1 | . . 1 . Max Gunslinging Chain 1 | . . 1 . Shots Hit Robots 110 | 7 69 17 17 Core Hits 46 | 3 24 8 11 Critical Kills . | . . . . Critical Parts Destroyed . | . . . . Critical Strikes 5 | . 1 2 2 Burn 4 | . . 2 2 Corrupt 1 | . 1 . . Melee Attacks . | . . . . Impact . | . . . . Slashing . | . . . . Piercing . | . . . . Sneak Attacks . | . . . . Combat Hostiles . | . . . . Follow-up Attacks . | . . . . Damage Inflicted 1786 | 84 990 218 494 Guns 1392 | 84 907 218 183 Cannons . | . . . . Explosions 390 | . 79 . 311 Melee . | . . . . Ramming 4 | . 4 . . Kinetic 559 | 44 416 34 65 Thermal 369 | . 79 172 118 Explosive 311 | . . . 311 Electromagnetic 543 | 40 491 12 . Impact . | . . . . Slashing . | . . . . Piercing . | . . . . Highest Corruption 2 | . 2 2 2 Average Corruption 2 | . 2 2 2 Corruption Purged . | . . . . Corruption Blocked . | . . . . Effects 13 | . 2 2 9 Message Errors 3 | . . 1 2 Matter Fused 4 | . . . 4 Heat Flow Errors 1 | . . . 1 Energy Discharges 2 | . . 1 1 Data Loss (minor) 2 | . 1 . 1 Misfires 1 | . 1 . . Overload Shots . | . . . . Overflow Damage . | . . . . Projectiles . | . . . . Explosions . | . . . . Melee . | . . . . Knockbacks . | . . . . Impact . | . . . . Kinetic . | . . . . Secondary . | . . . . Self-Inflicted Damage 61 | . 61 . . Shots 3 | . 3 . . Rammed 1 | . . 1 . Targets Rammed 2 | . 1 1 . Kicked . | . . . . Crushed 1 | . 1 . . Highest Temperature 248 | . 66 216 248 Average Temperature 56 | . 26 85 129 Received Heat Transfer 578 | . 102 126 350 Siege Activations . | . . . . Martial Activations . | . . . . Shielding Activations . | . . . . Robots Disrupted . | . . . . Combat Hostiles . | . . . . Robots Corrupted 1 | . 1 . . Combat Hostiles . | . . . . Parts Fried 3 | . 3 . . Impact Corruptions . | . . . . Robots Melted . | . . . . Combat Hostiles . | . . . . Parts Melted 3 | . . 3 . Heat Transferred 1210 | . 100 629 481 Parts Sabotaged . | . . . . Parts Stolen . | . . . . Parts Stripped . | . . . . Power Chain Reactions 3 | . 3 . . Alert | -11 -10 -10 -10 ------- Run | Yrd Mat Min Sub Maximum Alert Level . | . . . . Low Security (%) 100 | 100 100 100 . Level 1 . | . . . . Level 2 . | . . . . Level 3 . | . . . . Level 4 . | . . . . Level 5 . | . . . . High Security . | . . . . Max Security . | . . . . Peak Influence 124 | 5 124 60 . Initial . | . . . . Average 24 | . 28 19 . Influence Increases 457 | 10 327 120 . Destroy 0b10 Robot/C 280 | . 180 100 . Destroy 0b10 Robot/NC 50 | 10 40 . . Destroy Leader 58 | . 38 20 . Successful Hack 9 | . 9 . . Destroy Structure 15 | . 15 . . Lose Combat Pursuer 45 | . 45 . . Influence Decreases 457 | 10 327 80 40 Entered New Map 21 | . . . 21 Time Decay 293 | 10 204 60 19 Lost Part 30 | . 10 20 . Purge Threat 113 | . 113 . . Squads Dispatched 2 | . 2 . . Investigation 1 | . 1 . . Extermination . | . . . . Reinforcement 1 | . 1 . . Assault . | . . . . Garrison . | . . . . Intercept . | . . . . Searches Triggered . | . . . . Construction Impeded . | . . . . Haulers Reinforced . | . . . . Active Scanning Responses . | . . . . Cargo Convoy Interrupts . | . . . . Stealth | -11 -10 -10 -10 --------- Run | Yrd Mat Min Sub Distress Signals 1 | . 1 . . Communications Jammed . | . . . . Distress Signals . | . . . . Times Spotted 30 | . 19 5 6 Peak Tracking Total 4 | . 4 3 2 Tactical Retreats 2 | . 2 . . Traps | -11 -10 -10 -10 ------- Run | Yrd Mat Min Sub Traps Triggered 5 | . 3 . 2 Indirectly . | . . . . Trap Hack Attempts . | . . . . Triggered . | . . . . Disarmed . | . . . . Reprogrammed . | . . . . Reused . | . . . . Traps Extracted . | . . . . Installed . | . . . . Triggered . | . . . . Machines | -11 -10 -10 -10 ---------- Run | Yrd Mat Min Sub Machines Disabled 1 | . 1 . . Max in Single Turn 1 | . 1 . . Machines Repaired . | . . . . Machines Dismantled . | . . . . Machines Sabotaged . | . . . . Overloaded Fab Kills . | . . . . Hacking | -11 -10 -10 -10 --------- Run | Yrd Mat Min Sub Machines Accessed 6 | . 5 . 1 Terminals 4 | . 4 . . Fabricators . | . . . . Repair Stations 1 | . 1 . . Recycling Units . | . . . . Scanalyzers . | . . . . Garrison Access . | . . . . Total Hacks 20 | . 15 . 5 Successful 11 | . 6 . 5 Failed 9 | . 9 . . Catastrophic 2 | . 2 . . Database Lockouts . | . . . . Manual 12 | . 11 . 1 Terminals 14 | . 14 . . Fabricators . | . . . . Repair Stations 1 | . 1 . . Recycling Units . | . . . . Scanalyzers . | . . . . Garrison Access . | . . . . Terminal Hacks 6 | . 1 . 5 Record 5 | . . . 5 Unreport Threat 1 | . 1 . . Fabricator Hacks . | . . . . Repair Station Hacks . | . . . . Recycling Unit Hacks . | . . . . Scanalyzer . | . . . . Garrison Access Hacks . | . . . . Unauthorized Hacks 5 | . 5 . . Terminals 4 | . 4 . . Track 2 | . 2 . . Botnet 2 | . 2 . . Fabricators . | . . . . Repair Stations 1 | . 1 . . Mechanics 1 | . 1 . . Recycling Units . | . . . . Scanalyzers . | . . . . Garrison Access . | . . . . Data Cores Recovered . | . . . . Used . | . . . . Hacking Detections 4 | . 4 . . Full Trace Events . | . . . . Feedback Events . | . . . . Feedback Blocked . | . . . . Robot Schematics Acquired . | . . . . Robots Built . | . . . . Authchips . | . . . . Time . | . . . . Total Robot Build Rating . | . . . . Part Schematics Acquired . | . . . . Parts Built . | . . . . Authchips . | . . . . Time . | . . . . Total Part Build Rating . | . . . . Parts Repaired . | . . . . Time . | . . . . Parts Recycled . | . . . . Recycled Matter . | . . . . Retrieved Matter . | . . . . Retrieved Components . | . . . . Parts Scanalyzed . | . . . . Part Schematics Acquired . | . . . . Parts Damaged . | . . . . Bothacking | -11 -10 -10 -10 ------------ Run | Yrd Mat Min Sub Used RIF Installer . | . . . . Robots Hacked . | . . . . Non-combat . | . . . . Combat . | . . . . Robot Hacks Applied . | . . . . Relay Couplers Released . | . . . . Fabnet Peak Effective % . | . . . . Robots Rewired . | . . . . Allies Hacked . | . . . . Hacks Repelled . | . . . . Allies | -11 -10 -10 -10 -------- Run | Yrd Mat Min Sub Total Allies . | . . . . Largest Group . | . . . . Highest-Rated Group . | . . . . Highest-Rated Ally . | . . . . Total Orders . | . . . . Ally Attacks . | . . . . Total Damage . | . . . . Kills . | . . . . Allies Corrupted . | . . . . Allies Melted . | . . . . Intel | -11 -10 -10 -10 ------- Run | Yrd Mat Min Sub Active Infowar (turns) 1175 | 8 417 163 587 Seismic 589 | 8 175 . 406 Machine Analysis 586 | . 242 163 181 Robot Analysis Total . | . . . . Derelict Logs Recovered . | . . . . Drone Launches . | . . . . Drone Recoveries . | . . . . Exploration | -11 -10 -10 -10 ------------- Run | Yrd Mat Min Sub Turns Passed 1860 | 89 831 163 777 Spaces Moved 822 | 48 345 73 356 Core 19 | 19 . . . Treads 803 | 29 345 73 356 Legs . | . . . . Wheels . | . . . . Hover . | . . . . Flight . | . . . . Fastest Speed 50 | 50 160 160 160 Average Speed 174 | 118 160 160 198 Slowest Speed 240 | 160 160 160 240 Overloaded Moves . | . . . . Propulsion Burnouts . | . . . . Robots Hopped . | . . . . Potential Cave-ins . | . . . . Cave-ins Triggered . | . . . . Exploration Rate (%) 28 | 3 65 13 32 Regions Visited 3 Branch Regions 2 Pre-discovered Areas . | . . . . Known Exits Taken . | . . . . Unknown Exits Taken 3 | 1 1 1 . Scrap Searched . | . . . . Spaces Dug . | . . . . Terrain Destroyed 63 | . 13 . 50 Melee . | . . . . Projectile . | . . . . AOE 63 | . 13 . 50 Terrain Rammed . | . . . . Walls Destroyed . | . . . . Machines Disabled . | . . . . Actions | -11 -10 -10 -10 --------- Run | Yrd Mat Min Sub Total 1065 | 68 515 95 387 Wait 101 | . 96 1 4 Move 819 | 47 344 72 356 Hop . | . . . . Pick Up 25 | 8 12 3 2 Fast Attach 2 | . 2 . . Attach 15 | 7 1 3 4 Detach . | . . . . Swap 5 | . 3 1 1 Drop 3 | . 2 1 . Fire 93 | 6 54 13 20 Melee . | . . . . Ram . | . . . . Kick . | . . . . Crush 2 | . 1 1 . Escape Stasis . | . . . . Rewire . | . . . . Trap . | . . . . Miscellaneous . | . . . . Route ------- -11/Scrapyard -10/Materials (discovered 3 exits: [*Mat] / [*Min x2]) -10/Mines (discovered 2 exits: [*Mat] / *Sub) -10/Subcaves History --------- Turn | Location | Event 5 | -11/Scrapyard | Discovered new exit (range 15) 90 | -11/Scrapyard | Entered Materials 300 | -10/Materials | Discovered new exit (range 15) 307 | -10/Materials | Build established: Mutant 683 | -10/Materials | Discovered new exit (range 14) 794 | -10/Materials | Discovered new exit (range 16) 921 | -10/Materials | Entered Mines 933 | -10/Mines | Discovered new exit (range 10) 1081 | -10/Mines | Discovered new exit (range 3) 1084 | -10/Mines | Entered Subcaves 1131 | -10/Subcaves | Visited Clippyterm 1136 | -10/Subcaves | Learned 40 Factory zone layouts 1136 | -10/Subcaves | Learned Factory garrison access intel 1227 | -10/Subcaves | Disturbed a concealed Subdweller 1266 | -10/Subcaves | Core integrity fell below 50% 1810 | -10/Subcaves | Disturbed a concealed Subdweller 1835 | -10/Subcaves | Ambushed by Subdweller buried in earth 1841 | -10/Subcaves | Core integrity fell below 20% 1845 | -10/Subcaves | Ambushed by Subdweller buried in earth 1861 | -10/Subcaves | Destroyed by 0W-TCD(R) with Subdweller Beam Cannon Last Messages --------------- 01794_ Subatomizers dissect the Wheel, destroying it. 01810_ P9-4M2(R) angrily emerges from the Twisted Machinery. 01834_ Lgt. Treads destroyed. 01835_ P9-4M2(R) suffers critical hit (Burn). 01836_ NF-QBS(R): "THANKSYOU!" 01836_ Particle Gun destroyed. 01836_ Grenade Launcher destroyed. 01836_ Ion Engine destroyed. 01840_ Seismic Detector destroyed. 01840_ P9-4M2(R) destroyed. 01843_ Subatomizers dissect the Sub. Machine Gun. 01844_ NF-QBS(R) affixes Scrap Shield Fragment to Scrap Shield. 01846_ 0W-TCD(R): "ARGHSUB!" 01850_ The unstable cave ceiling collapses. 01857_ 0W-TCD(R) suffers critical hit (Burn). 01859_ System corrupted: Matter fused (-7). Map ----- +----------------------------------------------------+ | ?????????????????????????????????????????????? | | ?????????????????????????????????????????????? | | ?????????????????????????????????????????????? | | ?????????????????????????????????????????????? | | ?????????????????????????????????????????????? | | ?????????????????????????????????????????????? | | ?????????????????????????????????????????????? | | ?????????????????????????????????????????????? | | ?????????????????????????????????????????????? | | ?????????????????????????????????????????????? | | ?????????????????????????????????????????????? | | ?????????????????????????????????????????????? | | ?????????????????????????????????????????????? | | ??????????????????????####???????????????????? | | ?????????????????????? &<#####???????????????? | | ??????????????#####??? ????????????????? | | ?????????????## # #??## R????????????????? | | ?????????????? ####< ????????????????? | | ??????????????? ## # #[ #????????????????? | | ???????????????# # < % ????????????????? | | ???????????????# # ###??????????????? | | ??????????????## ## #??????????????? | | ?????????????## = # ##?????????????? | | ???????????### = #?????????????? | | ?????????## # R ##?????????????? | | ??????## #; @ ##??????????????? | | ??????# ## #??????????????? | | ?????# ## #?????????????? | | ?????# #; ##?????????????? | | ????# ; #??????????????? | | ??### ## ;; ###??????????????? | | ??# # # ;###????????????????? | | # ??# ;;# #????????????????? | | # ??# #### #???????????????? | | #?# # #?? ???????????????? | | ## ### #?? ? ????????????????? | | #?## ??????????????????? | | # ## ###??## ## ??????????????????? | | ??### #?????? #?##??????????????????? | | ?## #?????? #?????????????????????? | | ?# ##?????# #?????????????????????? | | # ### #####??# #????????????????????? | | ##?## ##?? ????????????????????? | | #???# #??# ????????????????????? | | ## ## ##?#### ?????????????????????? | | #?# #?## ### ###?????????????????????? | | ?## ???## #?????????????????????? | | ? ## ????# # #?????????????????????? | | ?????### # ## #?????????????????????? | | ????######### ##?????????????????????? | +----------------------------------------------------+ Best States ------------- Heat Dissipation 25 Energy Generation 10 Energy Capacity 250 Matter Stores 300 Matter Capacity 300 Sight Range 16 Terrain Scan Density 10 Evasion (%) 50 Recoil Reduction 2 Item Schematics ----------------- None Robot Schematics ------------------ None Fabricated ------------ Nothing Repaired ---------- Nothing Alien Tech Used ----------------- None Achievements -------------- None Challenges ------------ None Game ------ Seed WarpMiniStripper Manual? 0 Play Time 00:20:07 Cumulative 19.8 hours Start 2025.09.04 @ 20:39:27 End 2025.09.04 @ 20:59:20 Sessions 1 Manual Loads 0 Difficulty Rogue Special Mode None Game No. 21 Rogue 21 Adventurer 0 Explorer 0 Win Type - Total 0 Types 0/0/0/0/0/0/0/0/0/0 Lore% 21 Gallery% 17 Achievement% 22 Wizard Run 0 Options --------- Layout 1 ASCII 0 Keyboard 0 Movement Mouse Keybinds 0 Fullscreen 2 Font 24/Smallcaps Map View 50x35 Zoom Use 0% Tactical HUD 1 Map Filters NONE Filters NONE Steam 1 RUN: 34ddae99-4af3-47c5-b40b-c5bd708b8aa5